{"text_format":"1","workbook":"xlsx","n_sheets":4,"sheets":["hiddenSheet","Koder Nevroligipoliklinikk barn","Prosedyrekoder Nevrologi polikl","Prosedyrekoder nevro 2024"],"not_rendered":{"charts":0,"images":1,"macros":0,"external_links":0,"defined_names":55,"comments":0,"pivot_tables":0},"unopened":[],"bounds":{"document_bytes":16777216,"sheet_cells":100000,"rows_first":2000,"rows_last":500,"rows_between":2000,"halvings":0,"cell_chars":16384,"cell_head_chars":4096},"cells_cut":0,"cells_raw":0,"read":"whole","date_system":"1900"}

{"sheet":"hiddenSheet","index":0,"n_rows":26,"n_cols":6,"rows_kept":26,"cut":false,"hidden":true,"merged":[]}
["nei","Helse Bergen",null,null,null,"Sheet1_Ref"]
["UB","D78609",null,null,null,"0"]
["MAL","Koder og prosedyrer Nevrologipoliklinikk barn og unge",null,null,null,"Sheet1_Ved"]
["EK_Avdeling¤2#4¤2#[Avdeling]¤3#EK_Avsnitt¤2#4¤2#[Avsnitt]¤3#EK_Bedriftsnavn¤2#1¤2#Helse Bergen¤3#EK_GjelderFra¤2#0¤2#[GjelderFra]¤3#EK_Opprettet¤2#0¤2#[Opprettet]¤3#EK_Utgitt¤2#0¤2#[Utgitt]¤3#EK_IBrukDato¤2#0¤2#[Endret]¤3#EK_DokumentID¤2#0¤2#[ID]¤3#EK_DokTittel¤2#0¤2#HBHF-mal felles stående¤3#EK_DokType¤2#0¤2#[DokType]¤3#EK_EksRef¤2#2¤2#EksRef_Layout¤3#EK_Erstatter¤2#0¤2#[Erstatter]¤3#EK_ErstatterD¤2#0¤2#[ErstatterD]¤3#EK_Signatur¤2#0¤2#[Signatur]¤3#EK_Verifisert¤2#0¤2#[Verifisert av]¤3#EK_Hørt¤2#0¤2#[Hørt av]¤3#EK_AuditReview¤2#2¤2#;[Signaturliste];¤3#EK_AuditApprove¤2#2¤2#;[Signaturliste];¤3#EK_Gradering¤2#0¤2#[Gradering]¤3#EK_Gradnr¤2#4¤2#[Gradnr]¤3#EK_Kapittel¤2#4¤2#[Kapittel]¤3#EK_Referanse¤2#2¤2#Ref_Layout¤3#EK_RefNr¤2#0¤2#[RefNr]¤3#EK_Revisjon¤2#0¤2#[Rev]¤3#EK_Ansvarlig¤2#0¤2#[EK-Ansvarlig]¤3#EK_SkrevetAv¤2#0¤2#[Forfatter]¤3#EK_UText1¤2#0¤2#[Dok.ansvarlig]¤3#EK_UText2¤2#0¤2#[UText2]¤3#EK_UText3¤2#0¤2#[UText3]¤3#EK_UText4¤2#0¤2#[UText4]¤3#EK_Status¤2#0¤2#[Status]¤3#EK_Stikkord¤2#0¤2#[Stikkord]¤3#EK_SuperStikkord¤2#0¤2#[SuperStikkord]¤3#EK_Rapport¤2#3¤2#[Tilknyttet rapport]¤3#EK_EKPrintMerke¤2#0¤2#Uoffisiell utskrift er kun gyldig på utskriftsdato¤3#EK_Watermark¤2#0¤2#Vannmerke¤3#EK_Utgave¤2#0¤2#[Ver]¤3#EK_Merknad¤2#7¤2#[Merknad]¤3#EK_VerLogg¤2#2¤2#[Versjonslogg]¤3#EK_RF1¤2#4¤2#[RF1]¤3#EK_RF2¤2#4¤2#[RF2]¤3#EK_RF3¤2#4¤2#[RF3]¤3#EK_RF4¤2#4¤2#[RF4]¤3#EK_RF5¤2#4¤2#[RF5]¤3#EK_RF6¤2#4¤2#[RF6]¤3#EK_RF7¤2#4¤2#[RF7]¤3#EK_RF8¤2#4¤2#[RF8]¤3#EK_RF9¤2#4¤2#[RF9]¤3#EK_Mappe1¤2#4¤2#[Mappe1]¤3#EK_Mappe2¤2#4¤2#[Mappe2]¤3#EK_Mappe3¤2#4¤2#[Mappe3]¤3#EK_Mappe4¤2#4¤2#[Mappe4]¤3#EK_Mappe5¤2#4¤2#[Mappe5]¤3#EK_Mappe6¤2#4¤2#[Mappe6]¤3#EK_Mappe7¤2#4¤2#[Mappe7]¤3#EK_Mappe8¤2#4¤2#[Mappe8]¤3#EK_Mappe9¤2#4¤2#[Mappe9]¤3#EK_DL¤2#0¤2#[dl]¤3#EK_GjelderTil¤2#0¤2#[GyldigTil]¤3#EK_Vedlegg¤2#2¤2#Ref_Layout¤3#EK_AvdelingOver¤2#4¤2#[AvdelingOver]¤3#EK_HRefNr¤2#0¤2#[HRefnr]¤3#EK_HbNavn¤2#0¤2#[HbNavn]¤3#EK_DokRefnr¤2#4¤2#000302¤3#EK_Dokendrdato¤2#4¤2#¤3#EK_HbType¤2#4¤2#¤3#EK_Offisiell¤2#4¤2#¤3#EK_VedleggRef¤2#4¤2#¤3#EK_Strukt00¤2#5¤2#[Strukturfelt]¤3#EK_Strukt01¤2#5¤2#[Strukturfelt]¤3#EK_Pub¤2#6¤2#¤3#EKR_DokType¤2#0¤2#[ResType]¤3#EKR_Doktittel¤2#0¤2#[ResTittel]¤3#EKR_DokumentID¤2#0¤2#[ResId]¤3#EKR_RefNr¤2#0¤2#[ResRefNr]¤3#EKR_Gradering¤2#0¤2#[ResGrad]¤3#EKR_Signatur¤2#0¤2#[ResSign]¤3#EKR_Verifisert¤2#0¤2#[Verifisert av]¤3#EKR_Hørt¤2#0¤2#[Hørt av]¤3#EKR_AuditReview¤2#2¤2#;[Signaturliste];¤3#EKR_AuditApprove¤2#2¤2#;[Signaturliste];¤3#EKR_AuditFinal¤2#2¤2#;[Signaturliste];¤3#EKR_Dokeier¤2#0¤2#[ResEier]¤3#EKR_Status¤2#0¤2#[ResStat]¤3#EKR_Opprettet¤2#0¤2#[ResOppr]¤3#EKR_Endret¤2#0¤2#[ResEndret]¤3#EKR_Ibruk¤2#0¤2#[ResIBruk]¤3#EKR_Rapport¤2#3¤2#[Tilknyttet rapport]¤3#EKR_Utgitt¤2#0¤2#[ResUtfylt]¤3#EKR_SkrevetAv¤2#0¤2#[Utfylt av]¤3#EKR_UText1¤2#0¤2#[RESUText1]¤3#EKR_UText2¤2#0¤2#[RESUText2]¤3#EKR_UText3¤2#0¤2#[RESUText3]¤3#EKR_UText4¤2#0¤2#[RESUText4]¤3#EKR_DokRefnr¤2#4¤2#¤3#EKR_Gradnr¤2#4¤2#¤3#EKR_Strukt00¤2#5¤2#[ ]¤3#","Vedlegg",null,null,null,"0"]
[2.2000000000000002,"Mikroteam Nevrologipoliklinikk barn og unge",null,null,null,"Sheet1_Eks"]
[0,"Helle Laurvig Milde",null,null,null,"0"]
["lagre","29.05.2024"]
["EK_Rapport¤1#","1.00"]
[-11,"5.3.7.4.3-02"]
["[EK_EksRef]","Pasientbehandling/Pasientjournalsystemer"]
["___","Helse Bergen HF/Barne- og ungdomsklinikken/Medisin A"]
["___","[]"]
["___","[Dok.ansvarlig]"]
["[EK_Referanse]","Ulvesrth, Merethe S"]
["___","29.05.2025"]
["___","Kategorier HB (ikke dokumenter på dette nivået trykk dere videre ned +)"]
["___","Helse Bergen HF"]
["[EK_Vedlegg]","[]"]
["___","Kategorier HB (ikke dokumenter på dette nivået trykk dere videre ned +)"]
["___","[]"]
[null,"[]"]
[null,"Kategorier HB (ikke dokumenter på dette nivået trykk dere videre ned +)/Pasientbehandling/Pasientjournalsystemer"]
[null,"Kategorier HB (ikke dokumenter på dette nivået trykk dere videre ned +)/Pasientbehandling/Pasientjournalsystemer"]
[null,"[]"]
[null,"[]"]
[null,"[]"]

{"sheet":"Koder Nevroligipoliklinikk barn","index":1,"n_rows":174,"n_cols":12,"rows_kept":174,"cut":false,"hidden":false,"merged":[[20,0,20,1],[25,0,25,1],[31,0,31,1],[0,0,1,1],[0,2,1,6],[6,2,6,3],[6,4,6,6],[2,2,2,3],[3,2,3,3],[4,2,4,3],[5,2,5,3],[2,4,2,6],[3,4,3,6],[4,4,4,6],[5,4,5,6]]}
[" ",null,{"$f":"hiddenSheet!ek_doktittel","v":"Koder og prosedyrer Nevrologipoliklinikk barn og unge"}]
[]
["Gyldig fra",{"$f":"hiddenSheet!ek_gjelderfra","v":"29.05.2024"},"Kategori: ",null,{"$f":"hiddenSheet!ek_s01mt3","v":"Pasientbehandling/Pasientjournalsystemer"}]
["Gylig til ",{"$f":"hiddenSheet!ek_gjeldertil","v":"29.05.2025"},"Organisatorisk plassering",null,{"$f":"hiddenSheet!ek_s00mt1","v":"Helse Bergen HF/Barne- og ungdomsklinikken/Medisin A"}]
["Versjon",{"$f":"hiddenSheet!ek_utgave","v":"1.00"},"Godkjenner",null,{"$f":"hiddenSheet!ek_signatur","v":"Helle Laurvig Milde"}]
["Dok.type",{"$f":"hiddenSheet!ek_doktype","v":"Vedlegg"},"Dok.ansvarlig",null,{"$f":"hiddenSheet!ek_utext1","v":"Ulvesrth, Merethe S"}]
["Dok.id",{"$f":"hiddenSheet!ek_dokumentid","v":"D78609"},"Referanse nummer",null,{"$f":"hiddenSheet!ek_refnr","v":"5.3.7.4.3-02"},null,null,null,null,null,null,"Sortert"]
[null,null,"Tilstandskoder",null,null,null,null,null,"Episoder, antall Totalt",null,null,"Tilstandskoder"]
[null,null,"R298 Andre og uspes. sympt. m/tilkn. til nerve og muskelskj.syst.",null,null,null,null,null,142,null,null,"Svulst/Lipom/Hemangiom/syndrom"]
[null,null,"G409 Uspesifisert epilepsi",null,null,null,null,null,120,null,null,"D177 Lipom med annen spesifisert lokalisasjon"]
[null,null,"G430 Migrene uten aura",null,null,null,null,null,74,null,null,"D180 Hemangiom, alle lokalisasjoner"]
[null,null,"G408 Annen spesifisert epilepsi",null,null,null,null,null,70,null,null,"D329 Godartet svulst i hjerne- og ryggmargshinner, uspesifisert"]
[null,null,"R51 Hodepine",null,null,null,null,null,39,null,null,"D330 Godartet svulst i hjerne, supratentoriell lokalisasjon"]
[null,null,"G403 Generalisert idiopatisk epilepsi og epileptiske syndromer",null,null,null,null,null,38,null,null,"D821 Di Georges syndrom"]
[null,null,"G402 Lok.rel.(fok./part.)sympt. epi./epi.syndr., komp. part. anf.",null,null,null,null,null,37,null,null,"Hypotyreose"]
[null,null,"G431 Migrene med aura",null,null,null,null,null,24,null,null,"E031 Medfødt hypotyreose uten struma"]
[null,null,"G439 Uspesifisert migrene",null,null,null,null,null,23,null,null,"E039 Uspesifisert hypotyreose"]
[null,null,"R53 Uvelhet og tretthet",null,null,null,null,null,20,null,null,"Metabolisme"]
[null,null,"G404 Annen generalisert epilepsi og epileptiske syndromer",null,null,null,null,null,20,null,null,"E711 Andre forstyrrelser i metabolismen av grenede aminosyrer"]
[null,null,"R629 Uspes. uteblivelse av forventet normal fysiologisk utvikling",null,null,null,null,null,14,null,null,"E728 Andre spesifiserte forstyrrelser i aminosyremetabolismen"]
[null,null,"R620 Forsinket oppnåelse av utviklingsmilepæl",null,null,null,null,null,14,null,null,"E752 Annen sfingolipidose"]
[null,null,"Q8501 Nevrofibromatose type 1",null,null,null,null,null,14,null,null,"E754 Nevronal ceroid lipofuscinose"]
[null,null,"G933 Postviralt utmattelsessyndrom",null,null,null,null,null,13,null,null,"E762 Andre mukopolysakkaridoser"]
[null,null,"G442 Tensjonshodepine",null,null,null,null,null,13,null,null,"F509 Uspesifisert spiseforstyrrelse"]
[null,null,"G401 Lok.rel.(fok./part.)sympt. epi./epi.syndr., enkle part. anf.",null,null,null,null,null,13,null,null,"Psykisk utviklingshemming"]
[null,null,"R628 Annen spes. uteblivelse av forventet normal fysiologisk utv.",null,null,null,null,null,12,null,null,"F700 Lett psykisk utviklingshemming, ingen/minimale atferdsprobl"]
[null,null,"Q998 Andre spesifiserte kromosomavvik",null,null,null,null,null,11,null,null,"F709 Lett psykisk utviklingshemming, atferdsproblemer ikke angitt"]
[null,null,"R560 Feberkramper",null,null,null,null,null,10,null,null,"F710 Moderat psykisk utviklingshemming, ingen/minim atferdsprobl"]
[null,null,"G400 Lok.rel.(fok./part.)idiop. epi./epi.syndr., anf. m. fok. deb",null,null,null,null,null,10,null,null,"F711 Moderat psykisk utviklingshemming, betyd atferdsproblemer"]
[null,null,"Z027 Utstedelse av legeerklæring",null,null,null,null,null,9,null,null,"F720 Alvorlig psykisk utviklingshemming, ingen/minim atferdsprobl"]
[null,null,"G932 Godartet intrakraniell hypertensjon",null,null,null,null,null,9,null,null,"F721 Alvorlig psykisk utviklingshemming, betyd atferdsproblemer"]
["Vedlegg",null,"G910 Kommuniserende hydrocephalus",null,null,null,null,null,8,null,null,"Utviklingsforstyrrelser"]
[null,null,"F840 Barneautisme",null,null,null,null,null,8,null,null,"F800 Spesifikk artikulasjonsforstyrrelse"]
[null,null,"G802 Spastisk hemiplegisk cerebral parese",null,null,null,null,null,6,null,null,"F809 Uspesifisert utviklingsforstyrrelse av tale og språk"]
[null,null,"G438 Annen spesifisert migrene",null,null,null,null,null,6,null,null,"F82 Spesifikk utviklingsforstyrrelse i motoriske ferdigheter"]
[null,null,"G433 Komplisert migrene",null,null,null,null,null,6,null,null,"F840 Barneautisme"]
[null,null,"Q753 Makrocefali",null,null,null,null,null,5,null,null,"F842 Retts syndrom"]
[null,null,"P140 Erbs parese som skyldes fødselsskade",null,null,null,null,null,5,null,null,"F845 Aspergers syndrom"]
[null,null,"G474 Narkolepsi og katapleksi",null,null,null,null,null,5,null,null,"F848 Andre spesifiserte gjennomgripende utviklingsforstyrrelser"]
[null,null,"Z514 Forberedelse til videre undersøkelse og behandling IKAS",null,null,null,null,null,4,null,null,"F900 Forstyrrelser av aktivitet og oppmerksomhet"]
[null,null,"Z048 Undersøkelse og observasjon av annen spesifisert årsak",null,null,null,null,null,4,null,null,"F950 Forbigående «tics»"]
[null,null,"R42 Svimmelhet",null,null,null,null,null,4,null,null,"F952 Tourettes syndrom"]
[null,null,"H55 Nystagmus og andre irregulære øyebevegelser",null,null,null,null,null,4]
[null,null,"E754 Nevronal ceroid lipofuscinose",null,null,null,null,null,4,null,null,"G118 Annen spesifisert arvelig ataksi"]
[null,null,"M436 Torticollis",null,null,null,null,null,3,null,null,"G248 Annen spesifisert dystoni"]
[null,null,"G918 Annen spesifisert hydrocephalus",null,null,null,null,null,3,null,null,"G250 Essensiell tremor"]
[null,null,"G801 Spastisk diplegi cerebral parese",null,null,null,null,null,3,null,null,"G400 Lok.rel.(fok./part.)idiop. epi./epi.syndr., anf. m. fok. deb"]
[null,null,"G473 Søvnapné",null,null,null,null,null,3,null,null,"G401 Lok.rel.(fok./part.)sympt. epi./epi.syndr., enkle part. anf."]
[null,null,"F710 Moderat psykisk utviklingshemming, ingen/minim atferdsprobl",null,null,null,null,null,3,null,null,"G402 Lok.rel.(fok./part.)sympt. epi./epi.syndr., komp. part. anf."]
[null,null,"F700 Lett psykisk utviklingshemming, ingen/minimale atferdsprobl",null,null,null,null,null,3,null,null,"G403 Generalisert idiopatisk epilepsi og epileptiske syndromer"]
[null,null,"<Ikke angitt>",null,null,null,null,null,3,null,null,"G404 Annen generalisert epilepsi og epileptiske syndromer"]
[null,null,"R633 Vanskeligheter med inntak og tilførsel av mat",null,null,null,null,null,2,null,null,"G405 Spesielle epileptiske syndromer"]
[null,null,"R55 Synkope og kollaps",null,null,null,null,null,2,null,null,"G406 Uspes. ep. m. tonisk-kloniske anfall (m. el. uten absenser)"]
[null,null,"R220 Lokalisert hevelse, oppfylling og kul på hode",null,null,null,null,null,2,null,null,"G408 Annen spesifisert epilepsi"]
[null,null,"Q878 Andre spesifiserte medfødte misdannelsessyndromer IKAS",null,null,null,null,null,2,null,null,"G409 Uspesifisert epilepsi"]
[null,null,"Q760 Spina bifida occulta",null,null,null,null,null,2,null,null,"Migrene/Hodepine"]
[null,null,"Q058 Sakral spina bifida uten hydrocephalus",null,null,null,null,null,2,null,null,"G430 Migrene uten aura"]
[null,null,"G824 Spastisk tetraplegi",null,null,null,null,null,2,null,null,"G431 Migrene med aura"]
[null,null,"G723 Periodisk paralyse",null,null,null,null,null,2,null,null,"G433 Komplisert migrene"]
[null,null,"G719 Uspesifisert primær muskelsykdom",null,null,null,null,null,2,null,null,"G438 Annen spesifisert migrene"]
[null,null,"G600 Arvelig motorisk og sensorisk nevropati",null,null,null,null,null,2,null,null,"G439 Uspesifisert migrene"]
[null,null,"F900 Forstyrrelser av aktivitet og oppmerksomhet",null,null,null,null,null,2,null,null,"G442 Tensjonshodepine"]
[null,null,"F721 Alvorlig psykisk utviklingshemming, betyd atferdsproblemer",null,null,null,null,null,2,null,null,"G443 Kronisk posttraumatisk hodepine"]
[null,null,"E762 Andre mukopolysakkaridoser",null,null,null,null,null,2,null,null,"G448 Andre spesifiserte hodepinesyndromer"]
[null,null,"Z098 Etteru s. etter annen spes. behand. for andre tilstander",null,null,null,null,null,1,null,null,"Søvn"]
[null,null,"Z018 Annen spesifisert spesiell undersøkelse",null,null,null,null,null,1,null,null,"G473 Søvnapné"]
[null,null,"Z001 Rutinemessig helseundersøkelse av barn",null,null,null,null,null,1,null,null,"G474 Narkolepsi og katapleksi"]
[null,null,"S863 Skade på muskel og sene i peroneus-gruppe",null,null,null,null,null,1,null,null,"G479 Uspesifisert søvnforstyrrelse"]
[null,null,"S442 Skade på nervus radialis i overarmsregionen",null,null,null,null,null,1,null,null,"Nerve"]
[null,null,"S422 Brudd i proksimal ende av overarmsben",null,null,null,null,null,1,null,null,"G518 Andre spesifiserte sykdommer i nervus facialis"]
[null,null,"R568 Andre og uspesifiserte kramper",null,null,null,null,null,1,null,null,"G588 Andre spesifiserte mononevropatier"]
[null,null,"R478 Andre og uspesifiserte taleforstyrrelser",null,null,null,null,null,1,null,null,"G600 Arvelig motorisk og sensorisk nevropati"]
[null,null,"R458 Andre spes. symp./tegn med tilkn. til emosjonell tilstand",null,null,null,null,null,1,null,null,"G609 Uspesifisert arvelig og idiopatisk nevropati"]
[null,null,"R268 Annen og uspesifisert unormal gange og bevegelighet",null,null,null,null,null,1,null,null,"G700 Myasthenia gravis"]
[null,null,"R251 Uspesifisert tremor",null,null,null,null,null,1,null,null,"G713 Mitokondriemyopati, ikke klassifisert annet sted"]
[null,null,"R238 Andre og uspesifiserte hudforandringer",null,null,null,null,null,1,null,null,"Muskel"]
[null,null,"R11 Kvalme og oppkast",null,null,null,null,null,1,null,null,"G719 Uspesifisert primær muskelsykdom"]
[null,null,"Q992 Fragilt X-kromosom",null,null,null,null,null,1,null,null,"G723 Periodisk paralyse"]
[null,null,"Q938 Andre spesifiserte delesjoner av autosomer",null,null,null,null,null,1,null,null,"G800 Spastisk kvadriplegisk cerebral parese"]
[null,null,"Q935 Andre delesjoner av del av kromosom",null,null,null,null,null,1,null,null,"G801 Spastisk diplegi cerebral parese"]
[null,null,"Q900 Trisomi 21, meiotisk nondisjunksjon",null,null,null,null,null,1,null,null,"G802 Spastisk hemiplegisk cerebral parese"]
[null,null,"Q871 Medfødte misd.syndr. som hovedsakelig fører til kortvoksthet",null,null,null,null,null,1,null,null,"G803 Dyskinetisk cerebral parese"]
[null,null,"Q851 Tuberøs sklerose",null,null,null,null,null,1,null,null,"G824 Spastisk tetraplegi"]
[null,null,"Q850 Nevrofibromatose (ikke-ondartet)",null,null,null,null,null,1,null,null,"G902 Horners syndrom"]
[null,null,"Q825 Medfødt ikke-neoplastisk nevus",null,null,null,null,null,1,null,null,"G910 Kommuniserende hydrocephalus"]
[null,null,"Q764 Andre medf. misd. i ryggsøyle, ikke forbundet med skoliose",null,null,null,null,null,1,null,null,"G918 Annen spesifisert hydrocephalus"]
[null,null,"Q750 Kraniosynostose",null,null,null,null,null,1,null,null,"G919 Uspesifisert hydrocephalus"]
[null,null,"Q667 Pes cavus",null,null,null,null,null,1,null,null,"G930 Hjernecyster"]
[null,null,"Q666 Andre medfødte valgusdeformiteter i fot",null,null,null,null,null,1,null,null,"G932 Godartet intrakraniell hypertensjon"]
[null,null,"Q665 Medfødt plattfot",null,null,null,null,null,1,null,null,"G933 Postviralt utmattelsessyndrom"]
[null,null,"Q664 Pes calcaneovalgus",null,null,null,null,null,1,null,null,"G934 Uspesifisert encefalopati"]
[null,null,"Q130 Iriskolobom",null,null,null,null,null,1,null,null,"G958 Andre spesifiserte ryggmargssykdommer"]
[null,null,"Q070 Arnold-Chiaris syndrom",null,null,null,null,null,1,null,null,"Øye"]
[null,null,"Q052 Lumbal spina bifida med hydrocephalus",null,null,null,null,null,1,null,null,"H024 Ptosis av øyelokk"]
[null,null,"Q048 Andre spesifiserte medfødte misdannelser i hjernen",null,null,null,null,null,1,null,null,"H500 Konvergent konkomiterende skjeling"]
[null,null,"Q043 Andre reduksjonsdeformiteter i hjernen",null,null,null,null,null,1,null,null,"H503 Intermitterende heterotropi"]
[null,null,"Q02 Foster med lite hode",null,null,null,null,null,1,null,null,"H55 Nystagmus og andre irregulære øyebevegelser"]
[null,null,"Q012 Oksipitalt encefalocele",null,null,null,null,null,1,null,null,"H570 Anomalier i pupillefunksjon"]
[null,null,"N433 Uspesifisert hydrocele",null,null,null,null,null,1,null,null,"H571 Øyesmerter"]
[null,null,"M9327 Osteochondritis dissecans i ankel, fot eller tå",null,null,null,null,null,1,null,null,"I618 Annen spesifisert hjerneblødning"]
[null,null,"M7965 Smerte i ekstremitet;bekken/lår",null,null,null,null,null,1,null,null,"I780 Arvelig hemoragisk teleangiektasi"]
[null,null,"M7960 Smerte i ekstremitet;flere lokalis",null,null,null,null,null,1,null,null,"L813 «Café-au-lait»-flekker"]
[null,null,"M5496 Uspesifisert ryggsmerte;lumbal",null,null,null,null,null,1,null,null,"Smerte og ?"]
[null,null,"M549 Uspesifisert ryggsmerte",null,null,null,null,null,1,null,null,"M210 Valgusdeformitet, ikke klassifisert annet sted"]
[null,null,"M542 Smerte i nakke",null,null,null,null,null,1,null,null,"M2560 Stivhet i ledd, ikke klassifisert annet sted;flere lokalis"]
[null,null,"M511 Lidelse i lumbalsk./mellomvirvelsk., m/radikulop. (G55.1*)",null,null,null,null,null,1,null,null,"M357 Hypermobilitetssyndrom"]
[null,null,"M357 Hypermobilitetssyndrom",null,null,null,null,null,1,null,null,"M436 Torticollis"]
[null,null,"M2560 Stivhet i ledd, ikke klassifisert annet sted;flere lokalis",null,null,null,null,null,1,null,null,"M511 Lidelse i lumbalsk./mellomvirvelsk., m/radikulop. (G55.1*)"]
[null,null,"M210 Valgusdeformitet, ikke klassifisert annet sted",null,null,null,null,null,1,null,null,"M542 Smerte i nakke"]
[null,null,"L813 «Café-au-lait»-flekker",null,null,null,null,null,1,null,null,"M549 Uspesifisert ryggsmerte"]
[null,null,"I780 Arvelig hemoragisk teleangiektasi",null,null,null,null,null,1,null,null,"M5496 Uspesifisert ryggsmerte;lumbal"]
[null,null,"I618 Annen spesifisert hjerneblødning",null,null,null,null,null,1,null,null,"M7960 Smerte i ekstremitet;flere lokalis"]
[null,null,"H571 Øyesmerter",null,null,null,null,null,1,null,null,"M7965 Smerte i ekstremitet;bekken/lår"]
[null,null,"H570 Anomalier i pupillefunksjon",null,null,null,null,null,1,null,null,"M9327 Osteochondritis dissecans i ankel, fot eller tå"]
[null,null,"H503 Intermitterende heterotropi",null,null,null,null,null,1,null,null,"N433 Uspesifisert hydrocele"]
[null,null,"H500 Konvergent konkomiterende skjeling",null,null,null,null,null,1,null,null,"P140 Erbs parese som skyldes fødselsskade"]
[null,null,"H024 Ptosis av øyelokk",null,null,null,null,null,1,null,null,"Medfødte tilstande"]
[null,null,"G958 Andre spesifiserte ryggmargssykdommer",null,null,null,null,null,1,null,null,"Q012 Oksipitalt encefalocele"]
[null,null,"G934 Uspesifisert encefalopati",null,null,null,null,null,1,null,null,"Q02 Foster med lite hode"]
[null,null,"G930 Hjernecyster",null,null,null,null,null,1,null,null,"Q043 Andre reduksjonsdeformiteter i hjernen"]
[null,null,"G919 Uspesifisert hydrocephalus",null,null,null,null,null,1,null,null,"Q048 Andre spesifiserte medfødte misdannelser i hjernen"]
[null,null,"G902 Horners syndrom",null,null,null,null,null,1,null,null,"Q052 Lumbal spina bifida med hydrocephalus"]
[null,null,"G803 Dyskinetisk cerebral parese",null,null,null,null,null,1,null,null,"Q058 Sakral spina bifida uten hydrocephalus"]
[null,null,"G800 Spastisk kvadriplegisk cerebral parese",null,null,null,null,null,1,null,null,"Q070 Arnold-Chiaris syndrom"]
[null,null,"G713 Mitokondriemyopati, ikke klassifisert annet sted",null,null,null,null,null,1,null,null,"Q130 Iriskolobom"]
[null,null,"G700 Myasthenia gravis",null,null,null,null,null,1,null,null,"Q664 Pes calcaneovalgus"]
[null,null,"G609 Uspesifisert arvelig og idiopatisk nevropati",null,null,null,null,null,1,null,null,"Q665 Medfødt plattfot"]
[null,null,"G588 Andre spesifiserte mononevropatier",null,null,null,null,null,1,null,null,"Q666 Andre medfødte valgusdeformiteter i fot"]
[null,null,"G518 Andre spesifiserte sykdommer i nervus facialis",null,null,null,null,null,1,null,null,"Q667 Pes cavus"]
[null,null,"G479 Uspesifisert søvnforstyrrelse",null,null,null,null,null,1,null,null,"Q750 Kraniosynostose"]
[null,null,"G448 Andre spesifiserte hodepinesyndromer",null,null,null,null,null,1,null,null,"Q753 Makrocefali"]
[null,null,"G443 Kronisk posttraumatisk hodepine",null,null,null,null,null,1,null,null,"Q760 Spina bifida occulta"]
[null,null,"G406 Uspes. ep. m. tonisk-kloniske anfall (m. el. uten absenser)",null,null,null,null,null,1,null,null,"Q764 Andre medf. misd. i ryggsøyle, ikke forbundet med skoliose"]
[null,null,"G405 Spesielle epileptiske syndromer",null,null,null,null,null,1,null,null,"Q825 Medfødt ikke-neoplastisk nevus"]
[null,null,"G250 Essensiell tremor",null,null,null,null,null,1,null,null,"Q850 Nevrofibromatose (ikke-ondartet)"]
[null,null,"G248 Annen spesifisert dystoni",null,null,null,null,null,1,null,null,"Q8501 Nevrofibromatose type 1"]
[null,null,"G118 Annen spesifisert arvelig ataksi",null,null,null,null,null,1,null,null,"Q851 Tuberøs sklerose"]
[null,null,"F952 Tourettes syndrom",null,null,null,null,null,1,null,null,"Q871 Medfødte misd.syndr. som hovedsakelig fører til kortvoksthet"]
[null,null,"F950 Forbigående «tics»",null,null,null,null,null,1,null,null,"Q878 Andre spesifiserte medfødte misdannelsessyndromer IKAS"]
[null,null,"F848 Andre spesifiserte gjennomgripende utviklingsforstyrrelser",null,null,null,null,null,1,null,null,"Q900 Trisomi 21, meiotisk nondisjunksjon"]
[null,null,"F845 Aspergers syndrom",null,null,null,null,null,1,null,null,"Q935 Andre delesjoner av del av kromosom"]
[null,null,"F842 Retts syndrom",null,null,null,null,null,1,null,null,"Q938 Andre spesifiserte delesjoner av autosomer"]
[null,null,"F82 Spesifikk utviklingsforstyrrelse i motoriske ferdigheter",null,null,null,null,null,1,null,null,"Q992 Fragilt X-kromosom"]
[null,null,"F809 Uspesifisert utviklingsforstyrrelse av tale og språk",null,null,null,null,null,1,null,null,"Q998 Andre spesifiserte kromosomavvik"]
[null,null,"F800 Spesifikk artikulasjonsforstyrrelse",null,null,null,null,null,1]
[null,null,"F720 Alvorlig psykisk utviklingshemming, ingen/minim atferdsprobl",null,null,null,null,null,1,null,null,"R11 Kvalme og oppkast"]
[null,null,"F711 Moderat psykisk utviklingshemming, betyd atferdsproblemer",null,null,null,null,null,1,null,null,"R220 Lokalisert hevelse, oppfylling og kul på hode"]
[null,null,"F709 Lett psykisk utviklingshemming, atferdsproblemer ikke angitt",null,null,null,null,null,1,null,null,"R238 Andre og uspesifiserte hudforandringer"]
[null,null,"F509 Uspesifisert spiseforstyrrelse",null,null,null,null,null,1,null,null,"R251 Uspesifisert tremor"]
[null,null,"E752 Annen sfingolipidose",null,null,null,null,null,1,null,null,"R268 Annen og uspesifisert unormal gange og bevegelighet"]
[null,null,"E728 Andre spesifiserte forstyrrelser i aminosyremetabolismen",null,null,null,null,null,1,null,null,"R298 Andre og uspes. sympt. m/tilkn. til nerve og muskelskj.syst."]
[null,null,"E711 Andre forstyrrelser i metabolismen av grenede aminosyrer",null,null,null,null,null,1,null,null,"R42 Svimmelhet"]
[null,null,"E039 Uspesifisert hypotyreose",null,null,null,null,null,1,null,null,"R458 Andre spes. symp./tegn med tilkn. til emosjonell tilstand"]
[null,null,"E031 Medfødt hypotyreose uten struma",null,null,null,null,null,1,null,null,"R478 Andre og uspesifiserte taleforstyrrelser"]
[null,null,"D821 Di Georges syndrom",null,null,null,null,null,1,null,null,"R51 Hodepine"]
[null,null,"D330 Godartet svulst i hjerne, supratentoriell lokalisasjon",null,null,null,null,null,1,null,null,"R53 Uvelhet og tretthet"]
[null,null,"D329 Godartet svulst i hjerne- og ryggmargshinner, uspesifisert",null,null,null,null,null,1,null,null,"R55 Synkope og kollaps"]
[null,null,"D180 Hemangiom, alle lokalisasjoner",null,null,null,null,null,1,null,null,"R560 Feberkramper"]
[null,null,"D177 Lipom med annen spesifisert lokalisasjon",null,null,null,null,null,1,null,null,"R568 Andre og uspesifiserte kramper"]
[null,null,"Totalt",null,null,null,null,null,960,null,null,"R620 Forsinket oppnåelse av utviklingsmilepæl"]
[null,null,null,null,null,null,null,null,null,null,null,"R628 Annen spes. uteblivelse av forventet normal fysiologisk utv."]
[null,null,null,null,null,null,null,null,null,null,null,"R629 Uspes. uteblivelse av forventet normal fysiologisk utvikling"]
[null,null,null,null,null,null,null,null,null,null,null,"R633 Vanskeligheter med inntak og tilførsel av mat"]
[null,null,null,null,null,null,null,null,null,null,null,"Brudd/skade"]
[null,null,null,null,null,null,null,null,null,null,null,"S422 Brudd i proksimal ende av overarmsben"]
[null,null,null,null,null,null,null,null,null,null,null,"S442 Skade på nervus radialis i overarmsregionen"]
[null,null,null,null,null,null,null,null,null,null,null,"S863 Skade på muskel og sene i peroneus-gruppe"]
[null,null,null,null,null,null,null,null,null,null,null,"Undersøkelse"]
[null,null,null,null,null,null,null,null,null,null,null,"Z001 Rutinemessig helseundersøkelse av barn"]
[null,null,null,null,null,null,null,null,null,null,null,"Z018 Annen spesifisert spesiell undersøkelse"]
[null,null,null,null,null,null,null,null,null,null,null,"Z027 Utstedelse av legeerklæring"]
[null,null,null,null,null,null,null,null,null,null,null,"Z048 Undersøkelse og observasjon av annen spesifisert årsak"]
[null,null,null,null,null,null,null,null,null,null,null,"Z098 Etteru s. etter annen spes. behand. for andre tilstander"]
[null,null,null,null,null,null,null,null,null,null,null,"Z514 Forberedelse til videre undersøkelse og behandling IKAS"]

{"sheet":"Prosedyrekoder Nevrologi polikl","index":2,"n_rows":35,"n_cols":9,"rows_kept":35,"cut":false,"hidden":false,"merged":[[0,0,1,1],[0,2,1,6],[2,2,2,3],[2,4,2,6],[3,2,3,3],[3,4,3,6],[4,2,4,3],[4,4,4,6],[5,2,5,3],[5,4,5,6],[6,2,6,3],[6,4,6,6]]}
[" ",null,{"$f":"hiddenSheet!ek_doktittel","v":"Koder og prosedyrer Nevrologipoliklinikk barn og unge"}]
[]
["Gyldig fra",{"$f":"hiddenSheet!ek_gjelderfra","v":"29.05.2024"},"Kategori: ",null,{"$f":"hiddenSheet!ek_s01mt3","v":"Pasientbehandling/Pasientjournalsystemer"}]
["Gylig til ",{"$f":"hiddenSheet!ek_gjeldertil","v":"29.05.2025"},"Organisatorisk plassering",null,{"$f":"hiddenSheet!ek_s00mt1","v":"Helse Bergen HF/Barne- og ungdomsklinikken/Medisin A"}]
["Versjon",{"$f":"hiddenSheet!ek_utgave","v":"1.00"},"Godkjenner",null,{"$f":"hiddenSheet!ek_signatur","v":"Helle Laurvig Milde"}]
["Dok.type",{"$f":"hiddenSheet!ek_doktype","v":"Vedlegg"},"Dok.ansvarlig",null,{"$f":"hiddenSheet!ek_utext1","v":"Ulvesrth, Merethe S"}]
["Dok.id",{"$f":"hiddenSheet!ek_dokumentid","v":"D78609"},"Referanse nummer",null,{"$f":"hiddenSheet!ek_refnr","v":"5.3.7.4.3-02"}]
[null,null,"Prosedyrekode",null,null,null,null,null,"Episoder, antall Totalt"]
[null,null,"<Ikke angitt>",null,null,null,null,null,894]
[null,null,"ADGT00 Innstilling/kontroll av el-stimulator for vagusstimulering",null,null,null,null,null,15]
[null,null,"WRBA23 Poliklinisk palliativ behandling i regi av palliativt senter",null,null,null,null,null,10]
[null,null,"WBGX00 Legemiddelgjennomg i hht Veileder om legemiddelgjennomgang",null,null,null,null,null,6]
[null,null,"WMAA11 Tverrfaglig vurdering av kjent tilstand",null,null,null,null,null,5]
[null,null,"OAAJ00 Kartlegging/utredning av grovmotorikk og mobilitet",null,null,null,null,null,5]
[null,null,"AAFE05 Søvndeprivert EEG",null,null,null,null,null,2]
[null,null,"AAFE00 Standard elektroencefalografi (EEG)",null,null,null,null,null,2]
[null,null,"WMAA10 Tverrfaglig utredning",null,null,null,null,null,2]
[null,null,"WDAG09 Generell anestesi INA",null,null,null,null,null,2]
[null,null,"AAGT10 Innstilling/kontroll av hydrocefalusshunt",null,null,null,null,null,1]
[null,null,"ZXM00 Bildeveiledet teknikk med bruk av ultralyd",null,null,null,null,null,1]
[null,null,"ZWWA20 Prosedyre rettet mot familie (foreldre og barn)",null,null,null,null,null,1]
[null,null,"WPBA16 Oppføl/samarb akt m tj utenf speshtj m pas foreldre el pårør",null,null,null,null,null,1]
[null,null,"WJAT50 Kartlegging av kosthold og ernæringstilstand",null,null,null,null,null,1]
[null,null,"WDAJ11 Våken sedering",null,null,null,null,null,1]
[null,null,"WBGM15 Peroral administrasjon av legemiddel",null,null,null,null,null,1]
[null,null,"SAC0AK Utredning og oppfølging av nevromuskulær sykdom",null,null,null,null,null,1]
[null,null,"OAAG10 Kartlegging av fatigue og/eller søvn",null,null,null,null,null,1]
[null,null,"OBDB00 Individuell rådgivning i forebyggende hensikt",null,null,null,null,null,1]
[null,null,"OBAH00 Behandl og veiledning av oralmotorikk og svelgfunksjon",null,null,null,null,null,1]
[null,null,"OADB00 Kartlegging av pasients/brukers mål",null,null,null,null,null,1]
[null,null,"OADA00 Kartlegging av pasients/brukers mestringsevne",null,null,null,null,null,1]
[null,null,"IBEA10 Psykomotorisk fysioterapi",null,null,null,null,null,1]
[null,null,"ACGX90 Lokal injeksjon av nevrotoksisk substans",null,null,null,null,null,1]
[null,null,"ABFX01 Lumbalpunksjon",null,null,null,null,null,1]
[null,null,"Totalt",null,null,null,null,null,959]

{"sheet":"Prosedyrekoder nevro 2024","index":3,"n_rows":35,"n_cols":1,"rows_kept":35,"cut":false,"hidden":false,"merged":[]}
["Tilstandskode                                                                                                                                                                   Dagpost bruker bildet Medisinsk koding i dips arena.                                                                                                        Se nederst til høyre på koder fra henvisningsperioden og bruk aktuelle i forhold til pasientens henvisning."]
["Prosedyrekode"]
["Ernæring"]
["WJAT50 Kartlegging av kosthold og ernæringstilstand"]
["SAC0AK Utredning og oppfølging av nevromuskulær sykdom"]
["Kartlegging"]
["OAAG10 Kartlegging av fatigue og/eller søvn"]
["OAAJ00 Kartlegging/utredning av grovmotorikk og mobilitet"]
["OADA00 Kartlegging av pasients/brukers mestringsevne"]
["OADB00 Kartlegging av pasients/brukers mål"]
["OBDB00 Individuell rådgivning i forebyggende hensikt"]
["Kontroll/innstilling"]
["AAGT10 Innstilling/kontroll av hydrocefalusshunt"]
["ADGT00 Innstilling/kontroll av el-stimulator for vagusstimulering"]
["Legemidler"]
["ACGX90 Lokal injeksjon av nevrotoksisk substans"]
["WBGM15 Peroral administrasjon av legemiddel"]
["WBGX00 Legemiddelgjennomg i hht Veileder om legemiddelgjennomgang"]
["Sedering"]
["WDAG09 Generell anestesi INA"]
["WDAJ11 Våken sedering"]
["Tverrfaglig"]
["WMAA10 Tverrfaglig utredning"]
["WMAA11 Tverrfaglig vurdering av kjent tilstand"]
["WPBA16 Oppføl/samarb akt m tj utenf speshtj m pas foreldre el pårør"]
["Opplæring"]
["ZWWA20 Prosedyre rettet mot familie (foreldre og barn)"]
["Epilepsi andre oplæringskoder??"]
["Palliasjon"]
["WRBA23 Poliklinisk palliativ behandling i regi av palliativt senter"]
["Undersøkelser"]
["AAFE00 Standard elektroencefalografi (EEG)"]
["AAFE05 Søvndeprivert EEG"]
["ABFX01 Lumbalpunksjon"]
["ZXM00 Bildeveiledet teknikk med bruk av ultralyd"]